bitfinex/quotes_BTCUSD_20251202
["timestamp","ask_amount","ask_price","bid_price","bid_amount"]
[1764693846853,0.16243,90671.0,90670.0,0.00305508]
[1764693847666,0.16243,90671.0,90670.0,0.00205508]
[1764693847870,0.16243,90671.0,90670.0,0.00305508]
[1764693848111,0.25258112,90671.0,90670.0,0.00205508]
[1764693848315,0.18442201,90671.0,90670.0,0.00205508]
[1764693848517,0.16243,90671.0,90670.0,0.00205508]
[1764693849533,0.18442201,90671.0,90670.0,0.00205508]
[1764693849813,0.22065069,90641.0,90640.0,0.0004]
[1764693849942,0.38387069,90641.0,90640.0,0.0004]
[1764693850163,0.4058627,90641.0,90640.0,0.0004]
[1764693850745,0.38387069,90641.0,90640.0,0.0004]
[1764693851229,0.36635069,90641.0,90640.0,0.0004]
[1764693851505,0.22065069,90641.0,90640.0,0.0004]
[1764693851975,0.22064826,90642.0,90640.0,0.0004]
[1764693852125,0.05681168,90648.0,90640.0,0.22105108]
[1764693852329,0.23166114,90650.0,90647.0,0.0425]
[1764693852527,0.01103192,90646.0,90640.0,0.0004]
[1764693852711,0.22064955,90642.0,90640.0,0.0004]
[1764693853109,0.05075,90641.0,90640.0,0.0004]
[1764693853312,0.22064433,90644.0,90640.0,0.0004]
[1764693853513,0.22063365,90648.0,90640.0,0.0004]
[1764693853718,0.01103192,90646.0,90640.0,0.01143265]
[1764693853939,0.23167941,90643.0,90640.0,0.0004]
[1764693854143,0.01103229,90643.0,90640.0,0.0004]
[1764693854355,0.01103143,90650.0,90641.0,0.01103253]
[1764693854592,0.01103143,90650.0,90640.0,0.22105207]
[1764693854593,0.14264252,90659.0,90652.0,0.22062248]
[1764693854740,0.14264252,90659.0,90646.0,0.01103192]
[1764693854741,0.0110307,90656.0,90646.0,0.01103192]
[1764693854927,0.01103131,90651.0,90645.0,0.01103204]
[1764693855120,0.01103131,90651.0,90644.0,0.22064237]
[1764693855121,0.01103156,90649.0,90640.0,0.0004]
[1764693855353,0.06299,90641.0,90640.0,0.0014]
[1764693855508,0.06299,90641.0,90640.0,0.0004]
[1764693855707,0.19304252,90641.0,90640.0,0.0004]
[1764693857577,0.19304252,90641.0,90640.0,0.0014]
[1764693857960,0.21503453,90641.0,90640.0,0.0014]
[1764693859391,0.14877,90641.0,90640.0,0.0014]
[1764693859591,0.19304252,90641.0,90640.0,0.0014]
[1764693861412,0.01752,90641.0,90640.0,0.0014]
[1764693861620,0.01103119,90652.0,90640.0,0.06477]
[1764693861816,0.05075,90641.0,90640.0,0.0014]
[1764693862175,0.14864,90641.0,90640.0,0.0014]
[1764693863047,0.14864,90641.0,90640.0,0.0004]
[1764693863701,0.17063201,90641.0,90640.0,0.0004]
[1764693863864,0.14864,90641.0,90640.0,0.0014]
[1764693864062,0.05075,90641.0,90640.0,0.0014]
[1764693864467,0.14864,90641.0,90640.0,0.0014]
[1764693864668,0.36929069,90641.0,90640.0,0.0014]
[1764693865349,0.01752,90642.0,90640.0,0.0014]
[1764693865780,0.22065069,90641.0,90640.0,0.0014]
[1764693865990,0.36929069,90641.0,90640.0,0.0014]
[1764693866601,0.36929069,90641.0,90640.0,0.0004]
[1764693866944,0.36929069,90641.0,90640.0,0.0014]
[1764693867320,0.36929069,90641.0,90640.0,0.0004]
[1764693867525,0.36929069,90641.0,90640.0,0.00128905]
[1764693867803,0.36929069,90641.0,90640.0,0.00228905]
[1764693868495,0.27140069,90641.0,90640.0,0.00228905]
[1764693868961,0.01752,90649.0,90641.0,0.23168289]
[1764693869135,0.22064175,90645.0,90641.0,0.23168289]
[1764693869346,0.01752,90649.0,90644.0,0.2206433]
[1764693869347,0.01103168,90648.0,90644.0,0.2206433]
[1764693869554,0.02855156,90649.0,90641.0,0.01103253]
[1764693869896,0.22061472,90656.0,90651.0,0.22062557]
[1764693870072,0.04427252,90659.0,90651.0,0.01103131]
[1764693870306,0.01103034,90659.0,90654.0,0.23164788]
[1764693870510,0.01103034,90659.0,90645.0,0.01103204]
[1764693870511,0.0110307,90656.0,90645.0,0.01103204]
[1764693870762,0.2316452,90656.0,90650.0,0.01103143]
[1764693870964,0.01103131,90651.0,90647.0,0.23166751]
[1764693871088,0.01103119,90652.0,90647.0,0.0110318]
[1764693871291,0.01103168,90648.0,90643.0,0.01103229]
[1764693871490,0.01103168,90648.0,90643.0,0.23167595]
[1764693871808,0.01103168,90648.0,90643.0,0.01103229]
[1764693872015,0.23166632,90648.0,90644.0,0.01103216]
[1764693872220,0.09837,90657.0,90651.0,0.23165653]
[1764693872221,0.0110307,90656.0,90651.0,0.23165653]
[1764693872379,0.01103034,90659.0,90654.0,0.22061905]
[1764693872585,0.23163944,90659.0,90655.0,0.2206161]
[1764693872781,0.04578,90661.0,90660.0,0.22060445]
[1764693873045,0.01102973,90664.0,90660.0,0.22060285]
[1764693873221,0.04578,90663.0,90660.0,0.01103022]
[1764693873431,0.04578,90663.0,90658.0,0.23163807]
[1764693873432,0.01102997,90662.0,90658.0,0.01103046]
[1764693873592,0.23163056,90662.0,90658.0,0.23163897]
[1764693873802,0.26637933,90663.0,90659.0,0.01103034]
[1764693874007,0.26637749,90663.0,90659.0,0.23163489]
[1764693874211,0.05680985,90663.0,90660.0,0.2336346]
[1764693874493,0.05680985,90663.0,90660.0,0.2316346]
[1764693874699,0.05075,90660.0,90658.0,0.002]
[1764693874894,0.05075,90660.0,90659.0,0.22060688]
[1764693875199,0.05075,90660.0,90658.0,0.2226079]
[1764693875200,0.2648794,90659.0,90658.0,0.002]
[1764693875386,0.14875,90660.0,90658.0,0.002]
[1764693875530,0.00088,90659.0,90658.0,0.002]
[1764693875954,0.00088,90659.0,90658.0,0.22260932]
[1764693876178,0.0005,90660.0,90658.0,0.002]
[1764693876384,0.01153022,90660.0,90653.0,0.22061956]
[1764693876588,0.22061658,90656.0,90652.0,0.2316549]
[1764693876793,0.23164784,90655.0,90651.0,0.01103131]
[1764693876993,0.01103095,90654.0,90649.0,0.01103156]
[1764693877134,0.23164768,90655.0,90651.0,0.22062419]
[1764693877337,0.23165211,90654.0,90650.0,0.01103143]
[1764693877632,0.01103107,90653.0,90652.0,0.002]
[1764693877857,0.01103058,90657.0,90652.0,0.002]
[1764693878076,0.22062149,90653.0,90652.0,0.002]
[1764693878321,0.27651149,90653.0,90652.0,0.002]
[1764693878725,0.0005,90660.0,90653.0,0.01103107]
[1764693878879,0.22110461,90660.0,90655.0,0.01103083]
[1764693879086,0.23164403,90657.0,90651.0,0.05294131]
[1764693879288,0.23164403,90657.0,90642.0,0.05353241]
[1764693879289,0.05589,90652.0,90642.0,0.05353241]
[1764693879483,0.05589,90652.0,90650.0,0.22062663]
[1764693879954,0.00093,90651.0,90650.0,0.01103143]
[1764693880125,0.00093,90651.0,90649.0,0.01103156]
[1764693880328,0.00093,90651.0,90649.0,0.23166189]
[1764693880507,0.00093,90651.0,90650.0,0.00059264]
[1764693880706,0.09318,90652.0,90650.0,0.00059264]
[1764693880907,0.09318,90652.0,90650.0,0.002]
[1764693881301,0.31380532,90652.0,90650.0,0.002]
[1764693881509,0.26489887,90651.0,90650.0,0.002]
[1764693881728,0.35807887,90651.0,90650.0,0.002]
[1764693881952,0.22065069,90641.0,90630.0,0.0002]
[1764693882156,0.33297069,90641.0,90630.0,0.0002]
[1764693882713,0.33297069,90641.0,90633.0,0.0110335]
[1764693883148,0.33297069,90641.0,90630.0,0.0002]
[1764693883356,0.33297069,90641.0,90640.0,0.0024]
[1764693884694,0.35049069,90641.0,90640.0,0.0024]
[1764693886371,0.33297069,90641.0,90640.0,0.0024]
[1764693886752,0.33297069,90641.0,90640.0,0.00328905]
[1764693887297,0.23167189,90646.0,90640.0,0.00328905]
[1764693887298,0.04577,90648.0,90640.0,0.22394166]
[1764693887518,0.01103229,90643.0,90640.0,0.0024]
[1764693887718,0.2316787,90643.0,90640.0,0.0024]
[1764693888005,0.06655,90641.0,90640.0,0.0024]
[1764693888147,0.06655,90641.0,90640.0,0.0004]
[1764693888503,0.06655,90641.0,90640.0,0.00228905]
[1764693888665,0.06655,90641.0,90640.0,0.00128905]
[1764693889010,0.01103131,90651.0,90646.0,0.01103192]
[1764693889239,0.23164435,90657.0,90649.0,0.01103156]
[1764693889439,0.01103083,90655.0,90650.0,0.01162407]
[1764693889667,0.01103119,90652.0,90648.0,0.01103168]
[1764693889867,0.01103119,90652.0,90647.0,0.0110318]
[1764693889868,0.01103131,90651.0,90647.0,0.0110318]
[1764693890086,0.04577,90648.0,90641.0,0.01103253]
[1764693890290,0.09318,90656.0,90645.0,0.01103204]
[1764693890415,0.01103107,90653.0,90649.0,0.01103156]
[1764693890615,0.01103095,90654.0,90649.0,0.01103156]
[1764693890846,0.09318,90653.0,90649.0,0.01103156]
[1764693891187,0.09318,90653.0,90648.0,0.01103168]
[1764693891365,0.09318,90653.0,90648.0,0.23166388]
[1764693891518,0.10421107,90653.0,90648.0,0.23166388]
[1764693891718,0.01103119,90652.0,90648.0,0.23166388]
[1764693891937,0.01103119,90652.0,90650.0,0.002]
[1764693892131,0.23164334,90657.0,90647.0,0.0110318]
[1764693892132,0.32482619,90656.0,90647.0,0.0110318]
[1764693892352,0.22061662,90655.0,90649.0,0.23166232]
[1764693892558,0.22061662,90655.0,90650.0,0.22062707]
[1764693892759,0.09318,90656.0,90652.0,0.01103119]
[1764693892987,0.10421083,90655.0,90650.0,0.002]
[1764693893191,0.23165735,90652.0,90650.0,0.002]
[1764693893810,0.22062393,90653.0,90650.0,0.002]
[1764693893811,0.09318,90655.0,90652.0,0.01103119]
[1764693894016,0.09318,90655.0,90653.0,0.22062001]
[1764693894209,0.01103095,90654.0,90649.0,0.01103156]
[1764693894454,0.01103119,90652.0,90648.0,0.23166364]
[1764693894650,0.01103119,90652.0,90650.0,0.002]
[1764693894885,0.10421119,90652.0,90648.0,0.23166364]
[1764693895071,0.0110307,90656.0,90650.0,0.22062781]
[1764693895214,0.22061753,90655.0,90653.0,0.002]
[1764693895412,0.22061753,90655.0,90645.0,0.22063889]
[1764693895413,0.01103095,90654.0,90640.0,0.0004]
[1764693895627,0.04577,90641.0,90640.0,0.0004]
[1764693895855,0.04577,90641.0,90640.0,0.00128905]
[1764693896061,0.01103229,90643.0,90640.0,0.00128905]
[1764693896262,0.01103192,90646.0,90640.0,0.0004]
[1764693896498,0.2206376,90647.0,90641.0,0.01103253]
[1764693896723,0.01103192,90646.0,90642.0,0.2316794]
[1764693896930,0.01103204,90645.0,90642.0,0.2316794]
[1764693897138,0.04577,90648.0,90642.0,0.01103241]
[1764693897350,0.23166096,90650.0,90646.0,0.2206371]
[1764693897524,0.01103143,90650.0,90646.0,0.2206371]
[1764693897724,0.01103143,90650.0,90647.0,0.23166682]
[1764693897926,0.23166278,90649.0,90645.0,0.23167217]
[1764693898129,0.06655,90646.0,90644.0,0.01103216]
[1764693898531,0.29822176,90646.0,90642.0,0.01103241]
[1764693898738,0.01103229,90643.0,90640.0,0.0004]
[1764693898940,0.06655,90646.0,90643.0,0.01103229]
[1764693899149,0.01103229,90643.0,90640.0,0.0004]
[1764693899497,0.22064916,90642.0,90640.0,0.0004]
[1764693899859,0.1427,90641.0,90640.0,0.0034]
[1764693900988,0.1427,90641.0,90640.0,0.0004]
[1764693901146,0.1427,90641.0,90640.0,0.0014]
[1764693901342,0.26639212,90653.0,90645.0,0.01103204]
[1764693901524,0.26639212,90653.0,90640.0,0.06684]
[1764693901525,0.13745252,90652.0,90642.0,0.00082976]
[1764693901731,0.06618,90641.0,90640.0,0.0014]
[1764693901938,0.06618,90641.0,90640.0,0.0034]
[1764693902155,0.15909,90641.0,90640.0,0.0004]
[1764693903614,0.18108201,90641.0,90640.0,0.0004]
[1764693904294,0.15909,90641.0,90640.0,0.0004]
[1764693904695,0.20336252,90641.0,90640.0,0.0004]
[1764693905029,0.22088252,90641.0,90640.0,0.0004]
[1764693905659,0.15909,90641.0,90640.0,0.0014]
[1764693905816,0.01103204,90645.0,90640.0,0.01243265]
[1764693906021,0.24918865,90647.0,90642.0,0.01103241]
[1764693906259,0.0285518,90647.0,90643.0,0.22064503]
[1764693906417,0.01752,90654.0,90642.0,0.01103241]
[1764693906622,0.2316671,90648.0,90643.0,0.2316765]
[1764693906830,0.04041192,90646.0,90641.0,0.01103253]
[1764693907042,0.02938,90646.0,90644.0,0.22064225]
[1764693907266,0.02938,90646.0,90640.0,0.0004]
[1764693907480,0.02938,90646.0,90645.0,0.00074084]
[1764693907683,0.01752,90653.0,90645.0,0.00074084]
[1764693907684,0.01752,90653.0,90650.0,0.01103143]
[1764693907910,0.00011485,90664.0,90657.0,0.01103058]
[1764693908124,0.23163784,90659.0,90654.0,0.23164931]
[1764693908408,0.01103046,90658.0,90655.0,0.23164579]
[1764693908624,0.22061662,90655.0,90652.0,0.04167]
[1764693908827,0.01103107,90653.0,90649.0,0.23166193]
[1764693909035,0.23165256,90653.0,90650.0,0.22062732]
[1764693909182,0.23165256,90653.0,90650.0,0.01103143]
[1764693909534,0.23165749,90652.0,90648.0,0.01103168]
[1764693909734,0.01103131,90651.0,90646.0,0.01103192]
[1764693909957,0.01103131,90651.0,90648.0,0.01103168]
[1764693910159,0.01103095,90654.0,90650.0,0.002]
[1764693910160,0.01103107,90653.0,90650.0,0.002]
[1764693910369,0.23165303,90653.0,90648.0,0.22063365]
[1764693910550,0.23165814,90651.0,90648.0,0.01103168]
[1764693910792,0.22061662,90655.0,90651.0,0.22062569]
[1764693911029,0.0005,90660.0,90657.0,0.23164233]
[1764693911231,0.0005,90660.0,90655.0,0.01103083]
[1764693911441,0.22060722,90659.0,90656.0,0.22061334]
[1764693911651,0.01103046,90658.0,90652.0,0.01103119]
[1764693911786,0.01103083,90655.0,90651.0,0.22062467]
[1764693911991,0.01103058,90657.0,90653.0,0.01103107]
[1764693912193,0.01103058,90657.0,90654.0,0.22061801]
[1764693912410,0.22061449,90656.0,90653.0,0.23165138]
[1764693912608,0.23164334,90657.0,90653.0,0.23165138]
[1764693912814,0.22060259,90661.0,90653.0,0.23165138]
[1764693912815,0.0110301,90661.0,90655.0,0.01103083]
[1764693913011,0.22060493,90660.0,90656.0,0.22061388]
[1764693913219,0.22060493,90660.0,90659.0,0.00032593]
[1764693913220,0.23163515,90660.0,90659.0,0.00032593]
[1764693913420,0.32755515,90660.0,90659.0,0.00032593]
[1764693913624,0.37303515,90660.0,90659.0,0.00032593]
[1764693913873,0.04548,90660.0,90659.0,0.00032593]
[1764693915185,0.14089,90660.0,90659.0,0.00032593]
[1764693915409,0.14089,90660.0,90659.0,0.00232593]
[1764693915584,0.26608445,90660.0,90659.0,0.00232593]
[1764693915803,0.05680985,90663.0,90659.0,0.00232593]
[1764693915804,0.04578,90663.0,90660.0,0.01103022]
[1764693915946,0.04578,90663.0,90659.0,0.00232593]
[1764693916147,0.04598,90660.0,90659.0,0.00232593]
[1764693916347,0.04598,90660.0,90659.0,0.002]
[1764693916557,0.23164803,90655.0,90649.0,0.01103156]
[1764693916771,0.23164803,90655.0,90646.0,0.01103192]
[1764693916772,0.01103083,90655.0,90646.0,0.01103192]
[1764693916970,0.22062941,90650.0,90647.0,0.22063583]
[1764693917308,0.2316535,90653.0,90647.0,0.23166763]
[1764693917506,0.231658,90651.0,90648.0,0.22063317]
[1764693917713,0.01103131,90651.0,90648.0,0.01103168]
[1764693917911,0.01103083,90655.0,90650.0,0.01103143]
[1764693918074,0.01103083,90655.0,90650.0,0.29568952]
[1764693918274,0.22062546,90652.0,90649.0,0.01103156]
[1764693918480,0.23165809,90651.0,90647.0,0.23166586]
[1764693918726,0.22062956,90650.0,90646.0,0.01103192]
[1764693918932,0.01103156,90649.0,90648.0,0.003]
[1764693919066,0.01103119,90652.0,90646.0,0.23166844]
[1764693919067,0.01103119,90652.0,90647.0,0.0110318]
[1764693919267,0.23165527,90652.0,90648.0,0.23166533]
[1764693919467,0.01103143,90650.0,90649.0,0.002]
[1764693919706,0.01103143,90650.0,90647.0,0.23166722]
[1764693919890,0.23165997,90652.0,90648.0,0.22063312]
[1764693920084,0.23165997,90652.0,90648.0,0.004]
[1764693920308,0.22062879,90650.0,90648.0,0.004]
[1764693920509,0.22062879,90650.0,90648.0,0.003]
[1764693920723,0.26611122,90649.0,90648.0,0.003]
[1764693921143,0.04548,90649.0,90644.0,0.22064182]
[1764693921344,0.04548,90649.0,90645.0,0.01103204]
[1764693921561,0.04548,90649.0,90640.0,0.01143265]
[1764693921562,0.23167662,90644.0,90640.0,0.0004]
[1764693921767,0.23166789,90647.0,90641.0,0.23168294]
[1764693921912,0.01103192,90646.0,90643.0,0.01103229]
[1764693922117,0.04755,90648.0,90647.0,0.22063609]
[1764693922335,0.2206361,90647.0,90642.0,0.2206478]
[1764693922512,0.23167278,90646.0,90645.0,0.001]
[1764693922955,0.04755,90648.0,90645.0,0.23167283]
[1764693923196,0.04755,90648.0,90647.0,0.22063609]
[1764693923400,0.04755,90648.0,90646.0,0.22063836]
[1764693923558,0.04755,90648.0,90647.0,0.00068155]
[1764693923758,0.04755,90648.0,90647.0,0.22131764]
[1764693923954,0.04755,90648.0,90647.0,0.00068155]
[1764693924160,0.1417,90663.0,90658.0,0.01103046]
[1764693924340,0.04578,90663.0,90660.0,0.01103022]
[1764693924544,0.04578,90663.0,90662.0,0.22059958]
[1764693924869,0.18667,90663.0,90660.0,0.22060401]
[1764693925041,0.04578,90663.0,90661.0,0.22060202]
[1764693925729,0.04578,90663.0,90661.0,0.220602]
[1764693925941,0.04578,90663.0,90662.0,0.22059958]
[1764693926331,0.31235726,90663.0,90661.0,0.001]
[1764693926553,0.22060196,90662.0,90661.0,0.001]
[1764693926756,0.31747196,90662.0,90661.0,0.001]
[1764693928160,0.22062504,90652.0,90648.0,0.01103168]
[1764693928383,0.23165727,90652.0,90646.0,0.22063704]
[1764693928591,0.01103143,90650.0,90644.0,0.23167364]
[1764693928753,0.22063553,90648.0,90645.0,0.22064092]
[1764693928957,0.22063553,90648.0,90642.0,0.2206468]
[1764693928958,0.0110301,90661.0,90653.0,0.01103107]
[1764693929190,0.22060412,90661.0,90655.0,0.01103083]
[1764693929368,0.23165001,90654.0,90649.0,0.01103156]
[1764693929591,0.01103095,90654.0,90650.0,0.01103143]
[1764693929924,0.23165007,90654.0,90653.0,0.00050372]
[1764693930126,0.22061905,90654.0,90653.0,0.00150372]
[1764693930331,0.01102876,90672.0,90662.0,0.22059958]
[1764693930538,0.01102961,90665.0,90660.0,0.01103022]
[1764693930698,0.01114458,90664.0,90660.0,0.01103022]
[1764693931090,0.00011485,90664.0,90663.0,0.22009715]
[1764693931302,0.00011485,90664.0,90663.0,0.22059715]
[1764693931507,0.00011485,90664.0,90663.0,0.37819715]
[1764693931719,0.00011485,90664.0,90663.0,0.40018915]
[1764693931923,0.00011485,90664.0,90663.0,0.37819715]
[1764693932131,0.00011485,90664.0,90663.0,0.41870915]
[1764693932523,0.00011485,90664.0,90663.0,0.41770915]
[1764693932734,0.00011485,90664.0,90663.0,0.40071715]
[1764693932909,0.00011485,90664.0,90663.0,0.41870915]
[1764693933120,0.00011485,90664.0,90663.0,0.41644915]
[1764693933325,0.00011485,90664.0,90663.0,0.46072167]
[1764693933535,0.00211485,90664.0,90663.0,0.43872967]
[1764693934161,0.00211485,90664.0,90663.0,0.39445715]
[1764693934568,0.00011485,90664.0,90663.0,0.30088715]
[1764693934963,0.00211485,90664.0,90663.0,0.30088715]
[1764693935398,0.00011485,90664.0,90663.0,0.30088715]
[1764693935544,0.00011485,90664.0,90663.0,0.39881715]
[1764693935957,0.00011485,90664.0,90663.0,0.42580915]
[1764693936360,0.00011485,90664.0,90663.0,0.40381715]
[1764693936561,0.00011485,90664.0,90663.0,0.42580915]
[1764693937485,0.00011485,90664.0,90663.0,0.40381715]
[1764693937682,0.00011485,90664.0,90663.0,0.42580915]
[1764693938122,0.00011485,90664.0,90663.0,0.37580915]
[1764693938535,0.00011485,90664.0,90663.0,0.35381715]
[1764693939223,0.00011485,90664.0,90663.0,0.25688715]
[1764693940269,0.00011485,90664.0,90663.0,0.006]
[1764693940480,0.00011485,90664.0,90663.0,0.22659715]
[1764693940679,0.00011485,90664.0,90663.0,0.38527715]
[1764693940883,0.00011485,90664.0,90663.0,0.40726915]
[1764693941095,0.00011485,90664.0,90663.0,0.40626915]
[1764693941523,0.00011485,90664.0,90663.0,0.40226915]
[1764693941711,0.00011485,90664.0,90663.0,0.40626915]
[1764693941970,0.00011485,90664.0,90663.0,0.40526915]
[1764693942165,0.00011485,90664.0,90663.0,0.37927715]
[1764693942383,0.00011485,90664.0,90663.0,0.38527715]
[1764693942584,0.00011485,90664.0,90663.0,0.28987715]
[1764693942953,0.00011485,90664.0,90663.0,0.31186915]
[1764693943133,0.00011485,90664.0,90663.0,0.38527715]
[1764693943333,0.00011485,90664.0,90663.0,0.40726915]
[1764693943622,0.00011485,90664.0,90663.0,0.38527715]
[1764693944007,0.00011485,90664.0,90663.0,0.40126915]
[1764693944406,0.00011485,90664.0,90663.0,0.38527715]
[1764693944568,0.00011485,90664.0,90663.0,0.40726915]
[1764693944769,0.00011485,90664.0,90663.0,0.45054167]
[1764693945167,0.00011485,90664.0,90663.0,0.44654167]
[1764693945570,0.00011485,90664.0,90663.0,0.44554167]
[1764693945984,0.00211485,90664.0,90663.0,0.44554167]
[1764693946187,0.00211485,90664.0,90663.0,0.42354967]
[1764693946625,0.00211485,90664.0,90663.0,0.44106967]
[1764693946825,0.00211485,90664.0,90663.0,0.42354967]
[1764693947056,0.00211485,90664.0,90663.0,0.46306167]
[1764693947420,0.00211485,90664.0,90663.0,0.44106967]
[1764693947619,0.00211485,90664.0,90663.0,0.46306167]
[1764693952110,4.85e-06,90664.0,90663.0,0.46186167]
[1764693952338,0.23152824,90702.0,90698.0,0.0110256]
[1764693952497,0.01110546,90702.0,90699.0,0.22050756]
[1764693952718,8.035e-05,90702.0,90701.0,0.22050473]
[1764693952919,8.035e-05,90702.0,90700.0,0.22050689]
[1764693953133,8.035e-05,90702.0,90701.0,0.22050473]
[1764693953383,8.035e-05,90702.0,90701.0,0.28378473]
[1764693953581,8.035e-05,90702.0,90698.0,0.001]
[1764693953783,0.22050512,90701.0,90697.0,0.04108]
[1764693954013,0.01110546,90702.0,90700.0,0.001]
[1764693954014,8.035e-05,90702.0,90700.0,0.001]
[1764693954224,0.22058487,90702.0,90700.0,0.001]
[1764693954418,0.22058487,90702.0,90698.0,0.23153742]
[1764693954419,0.22050587,90701.0,90698.0,0.23153742]
[1764693954650,0.22050587,90701.0,90698.0,0.23253742]
[1764693954821,8.035e-05,90702.0,90699.0,0.22050876]
[1764693955067,8.035e-05,90702.0,90700.0,0.22050635]
[1764693955243,8.035e-05,90702.0,90701.0,0.28378473]
[1764693956774,8.035e-05,90702.0,90701.0,0.28578473]
[1764693957184,8.035e-05,90702.0,90701.0,0.002]
[1764693957589,0.36108265,90702.0,90701.0,0.002]
[1764693957746,0.36108265,90702.0,90701.0,0.003]
[1764693959167,0.36108265,90702.0,90701.0,0.001]
[1764693959509,0.37210776,90702.0,90699.0,0.01102547]
[1764693959704,0.01102523,90701.0,90697.0,0.22051216]
[1764693960029,0.23153065,90701.0,90698.0,0.23153552]
[1764693960228,0.0110262,90693.0,90676.0,0.01752]
[1764693960430,0.01102864,90673.0,90665.0,0.01102961]
[1764693960636,0.011029,90670.0,90666.0,0.22058978]
[1764693960840,0.22057149,90674.0,90670.0,0.22058003]
[1764693961082,0.05739584,90696.0,90677.0,0.01102815]
[1764693961244,0.01752,90698.0,90689.0,0.01102669]
[1764693961479,0.01752,90698.0,90687.0,0.10436]
[1764693961480,0.01752,90706.0,90697.0,0.10436]
[1764693961673,8.034e-05,90698.0,90697.0,0.11538572]
[1764693961922,8.034e-05,90698.0,90697.0,0.04108]
[1764693962044,8.034e-05,90698.0,90697.0,0.19976]
[1764693962252,8.034e-05,90698.0,90697.0,0.10636]
[1764693962476,8.034e-05,90698.0,90697.0,0.19976]
[1764693962677,0.22059236,90698.0,90697.0,0.04108]
[1764693962874,8.034e-05,90698.0,90697.0,0.04208]
[1764693963080,0.01102633,90692.0,90687.0,0.26161838]
[1764693963281,0.01102633,90692.0,90687.0,0.04108]
[1764693963512,0.01102681,90688.0,90679.0,0.01102791]
[1764693963712,0.23155805,90690.0,90687.0,0.01102693]
[1764693963943,0.01102718,90685.0,90678.0,0.01102803]
[1764693964152,0.09565,90674.0,90666.0,0.01102949]
[1764693964355,0.0110273,90684.0,90677.0,0.01102815]
[1764693964558,0.13529252,90689.0,90683.0,0.2205472]
[1764693964559,0.23156748,90687.0,90683.0,0.2205472]
[1764693964734,0.01102645,90691.0,90686.0,0.01102706]
[1764693964735,0.2315574,90691.0,90686.0,0.01102706]
[1764693964899,0.04637,90694.0,90690.0,0.01102657]
[1764693965109,0.01102608,90694.0,90690.0,0.23155746]
[1764693965335,0.01102693,90687.0,90680.0,0.04108]
[1764693965534,0.01102669,90689.0,90685.0,0.22054328]
[1764693965821,0.01102669,90689.0,90687.0,0.003]
[1764693966024,0.01102645,90691.0,90688.0,0.01102681]
[1764693966203,0.23155591,90691.0,90687.0,0.01402693]
[1764693966405,0.04169,90688.0,90687.0,0.003]
[1764693966807,0.1403,90688.0,90687.0,0.003]
[1764693967534,0.1403,90688.0,90685.0,0.01102718]
[1764693967535,0.1403,90688.0,90685.0,0.23157046]
[1764693967799,0.01752,90693.0,90689.0,0.22053239]
[1764693968047,0.01752,90693.0,90691.0,0.22052866]
[1764693968224,8.034e-05,90698.0,90696.0,0.22051655]
[1764693968504,8.034e-05,90698.0,90697.0,0.10526]
[1764693969147,8.034e-05,90698.0,90697.0,0.19739]
[1764693969763,8.034e-05,90698.0,90697.0,0.223382]
[1764693969969,8.034e-05,90698.0,90697.0,0.19839]
[1764693970175,3.4e-07,90698.0,90697.0,0.219382]
[1764693970380,0.01102074,90738.0,90732.0,0.01102146]
[1764693970593,0.22042009,90736.0,90732.0,0.2314493]
[1764693970800,0.01102086,90737.0,90733.0,0.01102134]
[1764693971020,0.01102098,90736.0,90731.0,0.05210159]
[1764693971219,0.0003835,90738.0,90734.0,0.23144359]
[1764693971429,0.01102086,90737.0,90732.0,0.23145026]
[1764693971660,0.22042253,90735.0,90732.0,0.01102146]
[1764693971880,0.22079934,90738.0,90732.0,0.01102146]
[1764693971881,0.01140424,90738.0,90732.0,0.01102146]
[1764693972100,0.0003835,90738.0,90732.0,0.01102146]
[1764693972319,0.0110211,90735.0,90732.0,0.002]
[1764693972544,0.22042802,90733.0,90732.0,0.002]
[1764693972761,0.25585802,90733.0,90732.0,0.002]
[1764693972977,0.22042802,90733.0,90732.0,0.002]
[1764693973188,0.0003835,90738.0,90734.0,0.01102122]
[1764693973405,0.01102098,90736.0,90732.0,0.002]
[1764693973626,0.03543,90733.0,90732.0,0.002]
[1764693973845,0.01102159,90731.0,90723.0,0.01102256]
[1764693974050,0.01102207,90727.0,90722.0,0.01752]
[1764693974273,0.09855,90735.0,90724.0,0.01102244]
[1764693974483,0.2314562,90730.0,90727.0,0.01102207]
[1764693974695,0.01102232,90725.0,90721.0,0.01752]
[1764693974914,0.01102207,90727.0,90724.0,0.23147018]
[1764693975135,0.01102207,90727.0,90720.0,0.04108]
[1764693975346,0.01102219,90726.0,90717.0,0.01102329]
[1764693975557,0.22045287,90723.0,90716.0,0.01102341]
[1764693975780,0.22047736,90713.0,90709.0,0.01752]
[1764693975988,0.08325,90717.0,90712.0,0.01102389]
[1764693976242,0.03543,90717.0,90713.0,0.2204752]
[1764693976449,0.03543,90717.0,90709.0,0.2490283]
[1764693976450,0.2204707,90715.0,90709.0,0.01752]
[1764693976653,0.04645329,90717.0,90711.0,0.01102402]
[1764693976923,0.01102219,90726.0,90716.0,0.01102341]
[1764693977133,0.01102207,90727.0,90723.0,0.01102256]
[1764693977338,0.01102159,90731.0,90726.0,0.27254508]
[1764693977592,0.0995635,90738.0,90732.0,0.06418]
[1764693977593,0.0003835,90738.0,90732.0,0.06418]
[1764693977799,0.0003835,90738.0,90733.0,0.22042681]
[1764693978003,0.0003835,90738.0,90732.0,0.01102146]
[1764693978004,0.0003835,90738.0,90734.0,0.01102122]
[1764693978232,0.0003835,90738.0,90730.0,0.23145462]
[1764693978233,0.03543,90733.0,90730.0,0.23145568]
[1764693978436,0.03543,90733.0,90726.0,0.04108]
[1764693978648,0.03543,90733.0,90724.0,0.01102244]
[1764693978649,0.23146106,90728.0,90724.0,0.01102244]
[1764693978860,0.01102183,90729.0,90721.0,0.0586]
[1764693979042,0.01102232,90725.0,90723.0,0.002]
[1764693979302,0.09918,90732.0,90725.0,0.01102232]
[1764693979526,0.01102171,90730.0,90725.0,0.01102232]
[1764693979710,0.23146124,90728.0,90723.0,0.01102256]
[1764693979897,0.23146124,90728.0,90724.0,0.22044776]
[1764693980112,0.23146503,90727.0,90723.0,0.23147296]
[1764693980307,0.01140424,90738.0,90732.0,0.01102146]
[1764693980530,0.0003835,90738.0,90737.0,0.22041724]
[1764693980905,0.0003835,90738.0,90737.0,0.28459724]
[1764693981113,0.0003835,90738.0,90736.0,0.22041734]
[1764693981901,0.0003835,90738.0,90722.0,0.05210268]
[1764693981902,0.01102159,90731.0,90722.0,0.05210268]
[1764693982099,0.01102159,90731.0,90699.0,0.1464]